fUST/lending_fUST_20251030
["ID","MTS","AMOUNT","RATE_DAILY","PERIOD"]
[392651621,1761776963548,-102.12823427,0.00029251,2]
[392651622,1761776963594,-397.87176573,0.00029251,2]
[392651623,1761776963627,-500.0,0.00029306,2]
[392651624,1761776963663,-427.0,0.00029306,2]
[392651625,1761776963696,-500.0,0.00029361,2]
[392651626,1761776963727,-304.0,0.00029415,2]
[392651627,1761776963762,-166.68,0.00029521,14]
[392651628,1761776963796,-726.58820071,0.00029552,2]
[392651629,1761776963829,-500.0,0.00029621,5]
[392651630,1761776963860,-1000.0,0.00029621,5]
[392651631,1761776963892,-155.73006712,0.00029776,2]
[392651632,1761776963930,-644.26993288,0.00029776,2]
[392651633,1761776963963,-357.11430289,0.00029787,2]
[392651634,1761776963996,-838.32,0.000299,20]
[392651635,1761776964027,-151.0,0.00029959,7]
[392651636,1761776964061,-151.0,0.00029959,31]
[392651637,1761776964097,-151.0,0.00029959,31]
[392651638,1761776964133,-151.0,0.00029959,31]
[392651639,1761776964167,-151.0,0.00029959,15]
[392651640,1761776966529,4810.60152846,0.00029969,2]
[392651641,1761776966557,189.39847154,0.00029969,2]
[392651642,1761776971681,-5000.01,0.00029969,2]
[392651643,1761776971826,-10000.01,0.00029969,2]
[392651644,1761776971968,-10000.01,0.00029969,2]
[392651645,1761776972097,-10000.01,0.00029969,2]
[392651646,1761776972236,-1357.8292414,0.00029969,2]
[392651647,1761776972268,-3401.46899436,0.00029969,2]
[392651648,1761776972309,-481.41352848,0.00029969,2]
[392651649,1761776972370,-151.0,0.00029969,31]
[392651650,1761776972398,-198.0,0.00029969,31]
[392651651,1761776972428,-151.0,0.00029969,31]
[392651652,1761776972456,-1000.0,0.00029979,2]
[392651653,1761776972485,-1000.0,0.00029979,2]
[392651654,1761776972512,-1000.0,0.00029979,2]
[392651655,1761776972540,-337.11076587,0.00029979,2]
[392651656,1761776972570,-151.0,0.0002998,7]
[392651657,1761776972599,-151.0,0.0002998,31]
[392651658,1761776972626,-151.0,0.0002998,31]
[392651659,1761776972654,-151.0,0.0002998,31]
[392651660,1761776972683,-207.269968,0.0002998,31]
[392651661,1761776972713,-151.0,0.0002998,31]
[392651662,1761776972741,-151.0,0.0002998,31]
[392651663,1761776972872,-151.0,0.0002999,7]
[392651664,1761776972903,-151.0,0.0002999,31]
[392651665,1761776972932,-151.0,0.0002999,31]
[392651666,1761776972961,-151.0,0.0002999,31]
[392651667,1761776972989,-151.0,0.0002999,31]
[392651668,1761776973254,-99.24853226,0.0002998,10]
[392651669,1761776973269,-253.20146774,0.0002998,10]
[392651670,1761776973281,-8236.80853226,0.0002999,2]
[392651671,1761776973297,-10000.01,0.0002999,2]
[392651672,1761776974813,-10000.01,0.0002999,2]
[392651673,1761776977723,-1039.3297845,0.00024953,5]
[392651674,1761776977771,-7921.350431,0.0002999,2]
[392651675,1761776977833,-10000.01,0.0002999,2]
[392651676,1761776978002,-10000.01,0.0002999,2]
[392651677,1761776978170,-10000.01,0.0002999,2]
[392651678,1761776978324,-10000.01,0.0002999,2]
[392651679,1761776978454,-10000.01,0.0002999,2]
[392651680,1761776978566,-10000.01,0.0002999,2]
[392651682,1761776986849,-293.7,0.0002999,10]
[392651683,1761776986886,-9412.61,0.0002999,2]
[392651684,1761776987071,-3502.75876074,0.0002999,2]
[392651685,1761776987107,-2994.49247852,0.0002999,2]
[392651686,1761776987212,-1345.85491002,0.0002999,2]
[392651687,1761776987237,-7308.30017996,0.0002999,2]
[392651688,1761776987375,-192.277689,0.0002999,31]
[392651689,1761776987404,-151.0,0.0002999,31]
[392651690,1761776987433,-151.0,0.0002999,31]
[392651691,1761776987463,-151.0,0.0002999,31]
[392651692,1761776987627,-151.0,0.0002999,31]
[392651727,1761777032245,-200.0,0.00028972,2]
[392651729,1761777032255,-500.0,0.00028972,2]
[392651731,1761777032264,-572.39582493,0.00028972,2]
[392651733,1761777032274,-634.70669011,0.00028979,2]
[392651735,1761777032285,-151.0,0.00029005,2]
[392651737,1761777032294,-151.0,0.00029005,2]
[392651739,1761777032304,-151.0,0.00029005,2]
[392651741,1761777032313,-151.0,0.00029005,2]
[392651743,1761777032323,-185.02695779,0.00029005,2]
[392651745,1761777032332,-151.0,0.00029005,2]
[392651747,1761777032341,-151.0,0.00029005,2]
[392651749,1761777032351,-151.0,0.00029005,2]
[392651751,1761777032360,-151.0,0.00029005,2]
[392651753,1761777032370,-151.0,0.00029005,2]
[392651755,1761777032379,-151.0,0.00029005,2]
[392651757,1761777032388,-151.0,0.00029005,2]
[392651760,1761777032398,-151.0,0.00029005,2]
[392651763,1761777032407,-151.0,0.00029005,2]
[392651765,1761777032416,-151.0,0.00029005,2]
[392651767,1761777032425,-151.0,0.00029005,2]
[392651769,1761777032434,-151.0,0.00029005,2]
[392651771,1761777032443,-151.0,0.00029005,2]
[392651773,1761777032453,-151.0,0.00029005,2]
[392651775,1761777032462,-151.0,0.00029005,2]
[392651777,1761777032472,-151.0,0.00029005,2]
[392651779,1761777032481,-19637.82155708,0.00029005,2]
[392651781,1761777032491,-295.82961038,0.00029553,2]
[392651783,1761777032500,-3295.8539128,0.00029954,2]
[392651785,1761777032509,-300.0,0.00029989,2]
[392651787,1761777032518,-244.75,0.0002999,10]
[392651789,1761777032527,-203.96,0.0002999,10]
[392651791,1761777032537,-5000.0,0.0002999,2]
[392651793,1761777032546,-122039.40186231,0.0003,20]
[392651795,1761777032555,-2424.411007,0.0003,30]
[392651797,1761777032565,-156.41775,0.0003,2]
[392651799,1761777032574,-151.0,0.0003,31]
[392651801,1761777032583,-151.0,0.0003,31]
[392651803,1761777032592,-641.44,0.0003,15]
[392651805,1761777032601,-151.0,0.0003,31]
[392651807,1761777032610,-151.0,0.0003,31]
[392651809,1761777032620,-151.0,0.0003,31]
[392651811,1761777032629,-151.0,0.0003,31]
[392651813,1761777032638,-151.0,0.0003,31]
[392651815,1761777032647,-151.0,0.0003,31]
[392651817,1761777032656,-726.58820071,0.00030215,2]
[392651819,1761777032665,-1999.0,0.00030349,4]
[392651821,1761777032674,-157.015748,0.00030476,2]
[392651823,1761777032682,-2156.65,0.000305,2]
[392651824,1761777032691,-151.0,0.00030551,6]
[392651828,1761777032717,-500.0,0.00030652,5]
[392651829,1761777032727,-726.58820071,0.00030879,2]
[392651830,1761777032736,-289.79727181,0.00031,120]
[392651831,1761777032745,-1516.53069511,0.00031,120]
[392651832,1761777032754,-1579.48484122,0.00031,120]
[392651833,1761777032763,-212.78059964,0.00031,120]
[392651834,1761777032772,-161.16383933,0.00031,120]
[392651835,1761777032781,-183.94139314,0.00031,120]
[392651836,1761777032790,-162.85356235,0.00031,120]
[392651837,1761777032798,-223.3749111,0.00031,120]
[392651838,1761777032807,-151.0,0.00031,12]
[392651839,1761777032816,-151.0,0.0003119,31]
[392651840,1761777032825,-151.0,0.0003119,31]
[392651841,1761777032835,-151.0,0.0003119,31]
[392651842,1761777032844,-295.48563887,0.0003119,31]
[392651843,1761777032853,-31939.44088094,0.0003119,2]
[392651887,1761777038081,-573.98969482,0.00024953,2]
[392651888,1761777038094,-4426.01030518,0.00024953,2]
[392651889,1761777038104,-4418.42836046,0.0003119,2]
[392651890,1761777038114,-3882.88252284,0.0003119,2]
[392651891,1761777038124,-1000.0,0.000312,5]
[392651892,1761777038134,-1652.4733267,0.00031302,2]
[392651893,1761777038143,-151.0,0.0003151,6]
[392651894,1761777038153,-726.58820071,0.00031542,2]
[392651895,1761777038164,-9611.67,0.000316,7]
[392651896,1761777038173,-151.0,0.000316,15]
[392651897,1761777038182,-2167.0,0.00031652,2]
[392651898,1761777038192,-466.317,0.00031652,2]
[392651899,1761777038201,-632.0,0.00031652,2]
[392651900,1761777038210,-412.0,0.00031652,2]
[392651901,1761777038222,-169.3813518,0.00031653,2]
[392651902,1761777038233,-1999.0,0.00031719,6]
[392651903,1761777038242,-1500.0,0.00031748,5]
[392651904,1761777038251,-394.48672993,0.00031787,2]
[392651905,1761777038261,-289.79727181,0.000319,120]
[392651906,1761777038270,-1516.53069511,0.000319,120]
[392651907,1761777038279,-1579.48484122,0.000319,120]
[392651908,1761777038289,-212.78059964,0.000319,120]
[392651909,1761777038299,-161.16383933,0.000319,120]
[392651910,1761777038308,-368.716638,0.00032087,2]
[392651911,1761777038317,-3882.88252284,0.0003219,2]
[392651912,1761777038327,-151.0,0.000322,11]
[392651914,1761777038337,-2432.85756478,0.00032213,2]
[392651916,1761777038346,-151.0,0.00032213,31]
[392651918,1761777038355,-151.0,0.00032213,31]
[392651920,1761777038364,-151.0,0.00032213,31]
[392651921,1761777038373,-157.015748,0.00032278,60]
[392651922,1761777038383,-836.64555136,0.00032296,5]
[392651923,1761777038392,-157.015748,0.00032354,30]
[392651924,1761777038401,-2122.0,0.00032403,2]
[392651925,1761777038410,-151.0,0.00032468,7]
[392651926,1761777038419,-500.0,0.00032473,5]
[392651927,1761777038429,-2156.65,0.000326,2]
[392651928,1761777038439,-151.0,0.000327,10]
[392651929,1761777038448,-151.0,0.000328,13]
[392651930,1761777038458,-809.22058229,0.00032858,2]
[392651931,1761777038471,-1127.63614531,0.00032858,2]
[392651932,1761777038481,-151.0,0.00032877,2]
[392651933,1761777038491,-289.79727181,0.000329,120]
[392651934,1761777038500,-934.55233764,0.000329,120]
[392651935,1761777038512,-581.97835747,0.000329,120]
[392651936,1761777038522,-1579.48484122,0.000329,120]
[392651937,1761777038531,-151.0,0.00032932,2]
[392651938,1761777038541,-151.0,0.00032987,2]
[392651939,1761777038551,-168.0,0.00032991,7]
[392651940,1761777038561,-1000.0,0.00033021,5]
[392651941,1761777038571,-151.0,0.00033041,2]
[392651942,1761777038581,-1999.0,0.00033089,120]
[392651943,1761777038590,-151.0,0.00033096,2]
[392651944,1761777038599,-151.0,0.000331,16]
[392651945,1761777038609,-245.0,0.00033151,2]
[392651946,1761777038618,-743.884117,0.00033165,2]
[392651947,1761777038627,-151.0,0.000334,19]
[392651948,1761777038637,-81.17081386,0.000334,18]
[392651949,1761777038648,-69.82918614,0.000334,18]
[392651950,1761777038658,-151.0,0.00033427,7]
[392651951,1761777038667,-3882.88252284,0.00033446,2]
[392651952,1761777038676,-168.0,0.00033502,2]
[392651953,1761777038686,-200.0,0.0003351,34]
[392651954,1761777038695,-1500.0,0.00033569,5]
[392651955,1761777038705,-193.0,0.00033573,2]
[392651956,1761777038714,-277.0,0.000336,7]
[392651957,1761777038724,-151.0,0.000336,31]
[392651958,1761777038733,-151.0,0.000336,31]
[392651959,1761777038743,-151.0,0.000336,31]
[392651960,1761777038752,-168.0,0.00033626,2]
[392651961,1761777038761,-431.85915698,0.00033787,120]
[392651962,1761777038771,-500.0,0.000338,7]
[392651963,1761777038780,-592.66406308,0.000338,30]
[392651964,1761777038789,-169.97,0.00033812,10]
[392651965,1761777038799,-1265.22707052,0.00033822,20]
[392651966,1761777038811,-2345.67797331,0.00033822,20]
[392652015,1761777043263,-353.83491488,0.00029989,2]
[392652016,1761777043379,-146.16508512,0.00029989,2]
[392652017,1761777043390,-500.0,0.00029989,2]
[392652018,1761777043399,-500.0,0.00029989,2]
[392652019,1761777043409,-232.13150301,0.00029989,2]
[392652020,1761777043418,-274.43795335,0.00029989,2]
[392652021,1761777043427,-500.0,0.00029989,2]
[392652022,1761777043437,-270.40344875,0.00029989,2]
[392652023,1761777043446,-307.06819996,0.00029999,2]
[392652024,1761777043455,-500.0,0.00029999,2]
[392652025,1761777043464,-500.0,0.00029999,2]
[392652026,1761777043473,-371.51940981,0.00029999,2]
[392652041,1761777046346,-128.48059019,0.00029999,2]
[392652042,1761777046355,-288.53346606,0.00029999,2]
[392652043,1761777046365,-500.0,0.00029999,2]
[392652044,1761777046375,-178.69992888,0.00031,120]
[392652045,1761777046385,-178.69992888,0.000319,120]
[392652046,1761777046395,-35705.71814599,0.00033822,20]
[392652047,1761777046406,-19596.324575,0.00033822,20]
[392652048,1761777046468,-21.78217279,0.00033822,20]
[392652050,1761777155089,500.0,0.00028972,120]
[392652051,1761777155354,500.0,0.00028972,120]
[392652052,1761777155641,500.0,0.00028977,120]
[392652053,1761777155922,500.0,0.0002898,120]
[392652054,1761777156153,500.0,0.0002898,120]
[392652055,1761777156410,500.0,0.0002898,120]
[392652056,1761777156660,500.0,0.0002898,120]
[392652057,1761777156910,500.0,0.0002898,120]
[392652058,1761777157148,500.0,0.00028989,120]
[392652059,1761777157390,500.0,0.00028989,120]
[392652060,1761777157664,165.01,0.00028989,120]
[392652065,1761777299072,-5000.0,0.0002475,2]
[392652066,1761777307743,0.01,0.00025,2]
[392652067,1761777307778,4999.99,0.00025,2]
[392652068,1761777332581,5000.0,0.00025,2]
[392652069,1761777357482,0.02,0.00025,2]
[392652070,1761777357507,1878.98493569,0.00025,2]
[392652071,1761777366016,981.22987168,0.00025,2]
[392652072,1761777374205,369.46301536,0.00025,2]
[392652073,1761777383709,5000.0,0.00025,2]
[392652074,1761777398534,302.93942128,0.00024875,14]
[392652076,1761777400839,1352.0,0.00025,2]
[392652077,1761777407742,227.2505305,0.00028972,120]
[392652078,1761777409491,1406.47178904,0.00025,2]
[392652079,1761777459921,3016.0,0.0003,120]
[392652080,1761777480119,245.18,0.00016234,120]
[392652082,1761777493503,-3593.52821096,0.0002475,2]
[392652083,1761777493534,-1146.95357808,0.00025,2]
[392652084,1761777499407,-519.04642192,0.00025,2]
[392652085,1761777499442,-191.85570657,0.00025103,2]
[392652086,1761777499472,-300.0,0.00026848,2]
[392652087,1761777499503,-300.0,0.00026848,2]
[392652088,1761777499534,-300.0,0.00026848,2]
[392652089,1761777499565,-300.0,0.00026848,2]
[392652090,1761777499596,-226.38973376,0.00027103,2]
[392652091,1761777499627,-300.0,0.0002903,2]
[392652092,1761777514104,4895.34347195,0.0002903,2]
[392652101,1761777570818,10000.0,0.00030137,120]
[392652102,1761777583784,512.60810191,0.00029999,120]
[392652112,1761777670576,502.2668602,0.00029999,120]
[392652129,1761777971208,5000.0,0.00025204,2]
[392652132,1761778025187,-183.49079777,0.00025547,2]
[392652133,1761778025208,-216.51914137,0.00027547,2]
[392652134,1761778025228,-206.857204,0.00028899,60]
[392652135,1761778025249,-203.2177689,0.00029238,30]
[392652136,1761778043094,-359.54462732,0.00029238,30]
[392652137,1761778049064,169.0279182,0.00014601,2]
[392652161,1761778214865,737.49627,0.00013699,2]
[392652162,1761778215092,737.49627,0.00020187,2]
[392652163,1761778215347,737.49627,0.00026676,2]
[392652196,1761778232464,-312.25048316,0.00029238,30]
[392652198,1761778232476,-124.98712062,0.00029238,30]
[392652200,1761778232486,-1746.8303568,0.00029287,2]
[392652201,1761778232495,-249.54748496,0.00029547,2]
[392652202,1761778232504,-195.522,0.0003,2]
[392652204,1761778232513,-200.0,0.00030638,15]
[392652206,1761778232522,-300.0,0.00030894,2]
[392652207,1761778232531,-300.0,0.00030894,2]
[392652208,1761778232539,-400.0,0.00030894,2]
[392652209,1761778232548,-1600.0,0.00030894,2]
[392652211,1761778232557,-50000.0,0.00030895,2]
[392652213,1761778232566,-500.0,0.00030895,2]
[392652215,1761778232575,-500.0,0.00030895,2]
[392652217,1761778232585,-500.0,0.00030895,2]
[392652219,1761778232594,-500.0,0.00030895,2]
[392652221,1761778232602,-500.0,0.00030895,2]
[392652223,1761778232611,-445.14635538,0.00030895,2]
[392652225,1761778232620,-500.0,0.00030895,2]
[392652227,1761778232629,-500.0,0.00030895,2]
[392652229,1761778232639,-500.0,0.00030895,2]
[392652231,1761778232648,-573.65443298,0.00030895,2]
[392652233,1761778232657,-500.0,0.00030895,2]
[392652235,1761778232666,-379.44710656,0.00030895,2]
[392652237,1761778232675,-500.0,0.00030895,2]
[392652239,1761778232685,-500.0,0.00030895,2]
[392652241,1761778232694,-500.0,0.00030895,2]
[392652243,1761778232703,-500.0,0.00030895,2]
[392652245,1761778232712,-500.0,0.00030895,2]
[392652247,1761778232721,-605.10947157,0.00030895,2]
[392652249,1761778232730,-500.0,0.00030895,2]
[392652251,1761778232739,-500.0,0.00030895,2]
[392652253,1761778232748,-500.0,0.00030895,2]
[392652255,1761778232756,-150.003,0.00030898,27]
[392652257,1761778232766,-606.61227804,0.00031,120]
[392652259,1761778232774,-631.79393649,0.00031,120]
[392652261,1761778232784,-193.19818121,0.00031,120]
[392652263,1761778232796,-178.69992889,0.00031,120]
[392652265,1761778232806,-282.57582856,0.00031547,2]
[392652267,1761778232815,-606.61227804,0.000319,120]
[392652269,1761778232824,-631.79393649,0.000319,120]
[392652271,1761778232835,-193.19818121,0.000319,120]
[392652273,1761778232845,-178.69992889,0.000319,120]
[392652275,1761778232854,-168.0,0.0003211,2]
[392652277,1761778232863,-555.867,0.00032525,2]
[392652279,1761778232873,-412.0,0.00032525,2]
[392652281,1761778232883,-175.976,0.00032525,2]
[392652283,1761778232892,-150.0,0.00032525,2]
[392652285,1761778232903,-606.61227804,0.000329,120]
[392652287,1761778232913,-631.79393649,0.000329,120]
[392652289,1761778232922,-193.19818121,0.000329,120]
[392652291,1761778232932,-178.69992889,0.000329,120]
[392652293,1761778232941,-329.99,0.00033002,120]
[392652295,1761778232951,-242.1,0.00033002,120]
[392652297,1761778232960,-737.49627,0.00033165,2]
[392652299,1761778232970,-500.0,0.00033234,5]
[392652301,1761778232980,-200.0,0.00033266,3]
[392652303,1761778232989,-168.0,0.00033343,2]
[392652305,1761778232999,-800.0,0.00033406,3]
[392652307,1761778233009,-11602.86,0.00033529,10]
[392652309,1761778233019,-315.60417216,0.00033547,120]
[392652311,1761778233028,-177.74033729,0.00033612,2]
[392652313,1761778233038,-7471.8957691,0.00033612,2]
[392652315,1761778233047,-177.74033728,0.00033617,2]
[392652317,1761778233057,-177.74033728,0.00033622,2]
[392652319,1761778233066,-1941.44126141,0.0003368,2]
[392652321,1761778233075,-849.87,0.0003368,10]
[392652323,1761778233085,-21814.7215448,0.0003369,2]
[392652325,1761778233094,-1941.44126141,0.00033692,2]
[392652327,1761778233104,-3102.31,0.00033698,60]
[392652329,1761778233113,-151.0,0.00033702,2]
[392652331,1761778233123,-151.0,0.00033702,2]
[392652333,1761778233133,-151.0,0.00033702,2]
[392652335,1761778233142,-151.0,0.00033702,2]
[392652337,1761778233151,-151.0,0.00033702,2]
[392652339,1761778233160,-151.0,0.00033702,2]
[392652341,1761778233169,-151.0,0.00033702,2]
[392652343,1761778233179,-151.0,0.00033702,2]
[392652345,1761778233188,-151.0,0.00033702,2]
[392652347,1761778233198,-151.0,0.00033702,2]
[392652349,1761778233208,-151.0,0.00033702,2]
[392652351,1761778233217,-151.0,0.00033702,2]
[392652353,1761778233226,-151.0,0.00033702,2]
[392652355,1761778233236,-151.0,0.00033702,2]
[392652357,1761778233245,-151.0,0.00033702,2]
[392652359,1761778233254,-151.0,0.00033702,2]
[392652361,1761778233263,-151.0,0.00033702,2]
[392652363,1761778233273,-151.0,0.00033702,2]
[392652365,1761778233282,-151.0,0.00033702,2]
[392652367,1761778233291,-151.0,0.00033702,2]
[392652369,1761778233300,-6144.23453321,0.00033702,2]
[392652372,1761778233313,-463.66376798,0.00033702,2]
[392652374,1761778233324,-289.11991208,0.00033702,2]
[392652376,1761778233335,-17204.05077215,0.00033702,2]
[392652407,1761778238365,-150.0,0.00032525,2]
[392652408,1761778238375,-10097.55313464,0.00033702,2]
[392652505,1761778246608,-174.85049255,0.00030894,2]
[392652506,1761778246617,-500.0,0.00030894,2]
[392652507,1761778246627,-345.01216351,0.00030894,2]
[392652508,1761778246636,-276.7124968,0.00030894,2]
[392652510,1761778318863,579.0,0.00030136,120]
[392652511,1761778323605,194.17280245,0.0002589,2]
[392652512,1761778324027,229.1239069,0.0002789,2]
[392652514,1761778458300,3253.96340367,0.00025205,2]
[392652515,1761778466945,168.956402,0.00025205,2]
[392652516,1761778553507,1414.54,0.00025205,2]
[392652518,1761778707755,315.77526585,0.00025079,14]
[392652519,1761778837907,4846.77492848,0.00025205,2]
[392652520,1761778837935,5153.22507152,0.00025205,2]
[392652521,1761778849564,2598.9,0.00025205,2]
[392652522,1761778939597,169.43549047,0.000252,2]
[392652523,1761779005794,-197.93005754,0.00025229,2]
[392652524,1761779005826,-500.0,0.000253,2]
[392652525,1761779005857,-233.5574679,0.00027229,2]
[392652526,1761779005888,-403.72361849,0.00027958,2]
[392652527,1761779005917,-380.0,0.00027967,2]
[392652528,1761779005946,-194.7751613,0.00028219,2]
[392652529,1761779005977,-269.18487826,0.00029229,2]
[392652530,1761779006005,-500.0,0.00030586,5]
[392652531,1761779006034,-150.003,0.00030586,26]
[392652532,1761779006062,-169.45734788,0.0003079,2]
[392652533,1761779006806,-5247.73179527,0.00030888,2]
[392652534,1761779006831,-10000.01,0.00030888,2]
[392652535,1761779007000,-10000.01,0.00030888,2]
[392652536,1761779007163,-10000.01,0.00030888,2]
[392652537,1761779011648,-10000.01,0.00030888,2]
[392652538,1761779011794,-4752.22820473,0.00030888,2]
[392652539,1761779011831,-495.55359054,0.00030888,2]
[392652540,1761779011939,-704.44640946,0.00030888,2]
[392652541,1761779011969,-500.0,0.00030889,2]
[392652542,1761779011999,-500.0,0.00030889,2]
[392652543,1761779012026,-500.0,0.00030889,2]
[392652544,1761779012054,-500.0,0.00030889,2]
[392652545,1761779012083,-500.0,0.00030889,2]
[392652546,1761779012114,-500.0,0.00030889,2]
[392652547,1761779012146,-241.46159889,0.00030889,2]
[392652548,1761779012175,-500.0,0.00030889,2]
[392652549,1761779012205,-500.0,0.00030889,2]
[392652550,1761779012302,-500.0,0.00030889,2]
[392652551,1761779012331,-500.0,0.00030889,2]
[392652552,1761779012487,-500.0,0.00030889,2]
[392652553,1761779012518,-500.0,0.00030889,2]
[392652554,1761779012548,-500.0,0.00030889,2]
[392652555,1761779012578,-500.0,0.00030889,2]
[392652556,1761779012607,-529.94363601,0.00030889,2]
[392652557,1761779012636,-500.0,0.00030889,2]
[392652558,1761779012664,-374.29026305,0.00030889,2]
[392652559,1761779012692,-498.55489806,0.00030889,2]
[392652560,1761779012808,-500.0,0.00030889,2]
[392652561,1761779012839,-500.0,0.00030889,2]
[392652562,1761779012871,-500.0,0.00030889,2]
[392652563,1761779012901,-500.0,0.00030889,2]
[392652564,1761779012932,-500.0,0.00030889,2]
[392652565,1761779012965,-500.0,0.00030889,2]
[392652566,1761779012996,-500.0,0.00030889,2]
[392652567,1761779013027,-500.0,0.00030889,2]
[392652568,1761779013059,-500.0,0.00030889,2]
[392652569,1761779013091,-500.0,0.00030889,2]
[392652570,1761779013566,-375.73536499,0.00030889,2]
[392652571,1761779013583,-0.01,0.00030889,2]
[392652584,1761779159129,-500.0,0.0003089,120]
[392652585,1761779159153,-500.0,0.0003089,120]
[392652586,1761779159173,-152.87893923,0.0003089,7]
[392652587,1761779191979,1500.0,0.00015,2]
[392652588,1761779227106,-46.12106077,0.0003089,7]
[392652589,1761779227128,-221.67,0.00030891,120]
[392652590,1761779227151,-1027.81243741,0.00030916,2]
[392652591,1761779228100,-434.68600505,0.00030916,2]
[392652592,1761779256217,403.04,0.00030137,120]
[392652594,1761779353097,-183.91660947,0.0002589,2]
[392652595,1761779420307,5000.0,0.00025205,2]
[392652667,1761779432781,-217.02159917,0.0002789,2]
[392652668,1761779432791,-250.12658888,0.0002989,2]
[392652669,1761779432801,-242.64491122,0.00031,120]
[392652670,1761779432810,-252.71757459,0.00031,120]
[392652671,1761779432820,-999.0,0.00031473,2]
[392652673,1761779432829,-283.23157858,0.0003189,2]
[392652676,1761779432839,-242.64491122,0.000319,120]
[392652679,1761779432849,-252.71757459,0.000319,120]
[392652681,1761779432858,-150.0,0.00032533,2]
[392652685,1761779432867,-169.45734784,0.00032667,2]
[392652688,1761779432877,-3544.35390795,0.00032667,2]
[392652778,1761779438639,-2647.67220196,0.00032667,2]
[392652779,1761779438649,-185.70155412,0.0003289,2]
[392652780,1761779438658,-242.64491122,0.000329,120]
[392652781,1761779438668,-252.71757459,0.000329,120]
[392652782,1761779438677,-500.0,0.000329,120]
[392652783,1761779438686,-500.0,0.00032973,5]
[392652784,1761779438696,-166.50609978,0.00032978,7]
[392652785,1761779438705,-199.93737334,0.00032978,7]
[392652786,1761779438714,-500.0,0.00032978,7]
[392652787,1761779438723,-500.0,0.00032978,7]
[392652788,1761779438733,-500.0,0.00032978,7]
[392652789,1761779438742,-500.0,0.00032978,7]
[392652790,1761779438751,-500.0,0.00032978,7]
[392652791,1761779438760,-65.50171088,0.00032978,7]
[392652792,1761779438771,-434.49828912,0.00032978,7]
[392652793,1761779438781,-500.0,0.00032978,7]
[392652794,1761779438790,-500.0,0.00032978,7]
[392652795,1761779438800,-500.0,0.00032978,7]
[392652796,1761779438809,-500.0,0.00032978,7]
[392652797,1761779438818,-500.0,0.00032978,7]
[392652798,1761779438827,-500.0,0.00032978,7]
[392652799,1761779438836,-500.0,0.00032978,7]
[392652800,1761779438845,-279.94186761,0.00032978,7]
[392652801,1761779438855,-500.0,0.00032978,7]
[392652802,1761779438864,-500.0,0.00032978,7]
[392652803,1761779438874,-500.0,0.00032978,7]
[392652804,1761779438883,-500.0,0.00032978,7]
[392652805,1761779438892,-500.0,0.00032978,7]
[392652806,1761779438901,-500.0,0.00032978,7]
[392652807,1761779438910,-500.0,0.00032978,7]
[392652808,1761779438920,-500.0,0.00032978,7]
[392652809,1761779438929,-500.0,0.00032978,7]
[392652810,1761779438938,-500.0,0.00032978,7]
[392652811,1761779438946,-500.0,0.00032978,7]
[392652812,1761779438955,-500.0,0.00032978,7]
[392652813,1761779438965,-500.0,0.00032978,7]
[392652814,1761779438975,-453.73626154,0.00032978,7]